Cogmind - Beta 11.1 @@@ ROGUE MODE // 2022.08.25 @ 15:52:15 Player: lumberblack Result: Self-destructed Performance ------------- Evolutions (3) 1500 Regions Visited (8) 1600 Robots Destroyed (97) 485 Value Destroyed (1599) 1599 Prototype IDs (29) 580 Alien Tech Used (0) 0 Bonus (322) 322 TOTAL SCORE: 6086 Bonus ------- High Alert Combat Kills 22 Aligned with FarCom 300 Cogmind --------- Core Integrity 640/700 Matter 275/300 Energy 100/100 System Corruption 0% Temperature Cool (0) Movement Core (50) Location -7/Factory Parts ------- > --- POWER (1) -------- (None) > --- PROPULSION (5) --- Advanced Treads Armored Huge Wheel Improved Cesium-ion Thruster Improved Cesium-ion Thruster > --- UTILITY (5) ------ Machine Analyzer Advanced Visual Processing Unit Improved Signal Interpreter 0b10 Alert Chip > --- WEAPON (2) ------- Katana > --- INVENTORY (5) ---- Hybrid Antimatter Reactor Hybrid Antimatter Reactor Large Storage Unit Improved Utility Shielding Heavy Rocket Launcher Peak State ------------ > --- POWER ------------ (None) > --- PROPULSION ------- Advanced Treads Armored Huge Wheel Improved Cesium-ion Thruster Improved Cesium-ion Thruster > --- UTILITY ---------- Machine Analyzer Advanced Visual Processing Unit Improved Sensor Array Improved Signal Interpreter 0b10 Alert Chip > --- WEAPON ----------- Katana > --- INVENTORY -------- Hybrid Antimatter Reactor Hybrid Antimatter Reactor Large Storage Unit Improved Utility Shielding Heavy Rocket Launcher [Rating: 44] Favorites ----------- Power Light Ion Engine Engine Light Ion Engine Propulsion Light Treads Treads Light Treads Leg Aluminum Leg Wheel Armored Huge Wheel Hover Unit Aerolev Unit Flight Unit Improved Cesium-ion Thruster Utility Transport Network Coupler Device Trap Reconfigurator Storage Small Storage Unit Processor Transport Network Coupler Weapon Rocket Launcher Energy Gun Small Laser Energy Cannon Particle Cannon Ballistic Gun Assault Rifle Ballistic Cannon Light Cannon Launcher Rocket Launcher Special Weapon Mining Laser Slashing Weapon Katana Build | -11 -10 -10 -9 -9 -9 -8 -8 -7 ------- Run | Scr Mat Min Mat Min Exi Min Mat Fac Slots Evolved 6 | . . . 2 . . . 2 2 Power . | . . . . . . . . . Propulsion 3 | . . . 1 . . . 1 1 Utility 3 | . . . 1 . . . 1 1 Weapon . | . . . . . . . . . Parts Attached 85 | 2 9 6 27 1 1 13 23 3 Power 1 | . . . 1 . . . . . Engine 1 | . . . 1 . . . . . Core . | . . . . . . . . . Reactor . | . . . . . . . . . Propulsion 25 | 2 . . 6 . . . 16 1 Treads 19 | 2 . . 6 . . . 11 . Leg . | . . . . . . . . . Wheel 1 | . . . . . . . . 1 Hover 1 | . . . . . . . 1 . Flight 4 | . . . . . . . 4 . Utility 14 | . 2 . 3 . . 3 4 2 Device 4 | . . . . . . 2 2 . Storage . | . . . . . . . . . Processor 10 | . 2 . 3 . . 1 2 2 Hackware . | . . . . . . . . . Protection . | . . . . . . . . . Artifact . | . . . . . . . . . Weapon 45 | . 7 6 17 1 1 10 3 . Energy Gun 2 | . 2 . . . . . . . Energy Cannon 1 | . . . 1 . . . . . Ballistic Gun . | . . . . . . . . . Ballistic Cannon 16 | . 1 3 9 1 1 1 . . Launcher 14 | . 2 3 3 . . 5 1 . Special Weapon 6 | . 2 . 4 . . . . . Impact Weapon . | . . . . . . . . . Slashing Weapon 6 | . . . . . . 4 2 . Piercing Weapon . | . . . . . . . . . Special Melee Weapon . | . . . . . . . . . Unidentified Prototypes 3 | . . . 1 . . . 2 . Parts Lost 2 | . . . 1 . . . . 1 Power . | . . . . . . . . . Propulsion 1 | . . . 1 . . . . . Utility 1 | . . . . . . . . 1 Weapon . | . . . . . . . . . Highest Loss Streak 1 | . . . 1 . . . . 1 To Critical Strikes . | . . . . . . . . . Average Slot Usage (%) 70 | . 57 82 74 78 77 77 80 74 Treads 28 | . 28 28 31 33 33 33 29 7 Flight 1 | . . . . . . . 6 15 Device 1 | . . . . . . 6 9 6 Processor 16 | . . 28 30 33 33 25 26 28 Ballistic Gun 5 | . 13 . . . . . . . Ballistic Cannon 2 | . . 2 12 12 11 2 . . Launcher 6 | . . 23 . . . 2 . . Special Weapon 5 | . 13 . . . . . . . Slashing Weapon 1 | . . . . . . 8 8 7 Naked Turns . | . . . . . . . . . Heaviest Build 9 | 3 8 3 4 3 3 9 7 3 Greatest Support 88 | 3 3 3 20 69 3 69 88 3 Greatest Overweight (x) 2 | . 2 . 1 . . 2 . . Average Overweight (x) . | . . . . . . . . . Largest Inventory Capacity 8 | 8 5 5 5 5 5 5 5 5 Average Capacity 5 | 5 5 5 5 5 5 5 5 5 Most Carried 6 | 6 5 5 5 5 5 5 5 5 Average Carried 3 | . 2 4 4 4 4 4 4 4 Final Capacity 5 | 5 5 5 5 5 5 5 5 5 Final Carried 5 | 2 4 5 5 5 5 5 5 5 Class Distribution -------------------- 79% | Mutant 18% | Scout Dominant Class ---------------- Mutant | -10/Materials Mutant | -10/Mines Mutant | -9/Materials Mutant | -9/Mines Mutant | -9/Exiles Scout | -8/Mines Scout | -8/Materials Scout | -7/Factory Resources | -11 -10 -10 -9 -9 -9 -8 -8 -7 ----------- Run | Scr Mat Min Mat Min Exi Min Mat Fac Matter Collected 1771 | 262 47 174 623 74 10 325 256 . Remotely . | . . . . . . . . . Salvage Created 2402 | 203 37 137 693 117 . 467 748 . Parts 199 | 19 4 13 49 6 . 35 73 . Haulers Intercepted 10 | . 1 . 5 . . . 4 . Recyclers Shooed 2 | . . . . 1 . 1 . . Parts Field Recycled . | . . . . . . . . . Retrieved Matter . | . . . . . . . . . Parts Self-Destructed . | . . . . . . . . . Prevented . | . . . . . . . . . Kills | -11 -10 -10 -9 -9 -9 -8 -8 -7 ------- Run | Scr Mat Min Mat Min Exi Min Mat Fac Combat Hostiles Destroyed 54 | . . 8 15 4 . 13 14 . Melee 12 | . . . . . . 1 11 . Cannons 19 | . . 5 8 4 . 2 . . AOE 23 | . . 3 7 . . 10 3 . Classes Destroyed 13 | 2 1 4 5 . . . 1 . Worker 8 | . . 1 1 . . 2 4 . Builder 4 | . . . 1 . . 1 2 . Tunneler 8 | 6 . . . . . 2 . . Hauler 10 | . 1 . 5 . . . 4 . Recycler 6 | 1 . . . 1 . 4 . . Mechanic 1 | . . . 1 . . . . . Operator 1 | . . . . . . . 1 . Watcher 6 | . . . 3 . . . 3 . Swarmer 32 | . . 5 4 4 . 10 9 . Grunt 12 | . . 2 7 . . 2 1 . Duelist 2 | . . . 1 . . 1 . . Sentry 7 | . . . 3 . . . 4 . Assembled 1 | . . 1 . . . . . . Best Kill Streak 8 | 5 1 3 5 4 . 8 6 . Combat Bots Only 7 | . . 3 4 4 . 7 6 . Max Kills in Single Turn 4 | 1 1 2 3 1 . 4 3 . Gunslinging . | . . . . . . . . . Exploded 4 | . . 2 3 . . 4 3 . Melee 1 | . . . . . . 1 1 . Uniques/NPCs Destroyed . | . . . . . . . . . Combat | -11 -10 -10 -9 -9 -9 -8 -8 -7 -------- Run | Scr Mat Min Mat Min Exi Min Mat Fac Damage Taken 1756 | . . 222 541 102 . 151 414 326 Core 267 | . . 66 78 . . 47 16 60 Absorbed by Shields . | . . . . . . . . . Regen/Repaired (Parts) 294 | . . . 180 . . . 114 . Core Remaining (%) 84 | 100 . 73 . . . 68 97 . Volleys Fired 141 | 14 11 22 69 8 . 15 2 . Largest 2 | 2 1 2 2 2 . 2 1 . Hottest 100 | 60 100 66 100 70 . 66 36 . Shots Fired 183 | 28 11 23 82 16 . 21 2 . Gun 28 | 28 . . . . . . . . Cannon 116 | . 6 20 68 16 . 6 . . Launcher 30 | . . 3 10 . . 15 2 . Special 9 | . 5 . 4 . . . . . Kinetic 128 | 14 6 20 66 16 . 6 . . Thermal 25 | 14 5 . 6 . . . . . Explosive 30 | . . 3 10 . . 15 2 . Electromagnetic . | . . . . . . . . . Robot Hit Streak 14 | 7 10 4 14 4 . 2 . . Robot Miss Streak 5 | 3 1 3 4 5 . 2 . . Penetration Max . | . . . . . . . . . Secondary Targets . | . . . . . . . . . Shots Hit Robots 159 | 18 5 12 46 7 . 18 44 9 Core Hits 108 | 8 1 11 31 4 . 29 24 . Critical Kills . | . . . . . . . . . Critical Parts Destroyed . | . . . . . . . . . Critical Strikes 8 | . . . 2 . . . 4 2 Blast 2 | . . . 2 . . . . . Sever 6 | . . . . . . . 4 2 Melee Attacks 105 | . . . . . . 15 77 13 Impact . | . . . . . . . . . Slashing 105 | . . . . . . 15 77 13 Piercing . | . . . . . . . . . Sneak Attacks 22 | . . . . . . 9 13 . Combat Hostiles . | . . . . . . . . . Follow-up Attacks . | . . . . . . . . . Damage Inflicted 6611 | 204 91 454 1396 144 . 1799 2227 296 Guns 204 | 204 . . . . . . . . Cannons 1385 | . 91 222 865 133 . 74 . . Explosions 1965 | . . 211 519 . . 972 263 . Melee 3012 | . . . . . . 753 1963 296 Ramming 45 | . . 21 12 11 . . 1 . Kinetic 1427 | 84 91 222 823 133 . 74 . . Thermal 243 | 120 . . 42 . . 81 . . Explosive 1884 | . . 211 519 . . 891 263 . Electromagnetic . | . . . . . . . . . Impact . | . . . . . . . . . Slashing 3012 | . . . . . . 753 1963 296 Piercing . | . . . . . . . . . Highest Corruption . | . . . . . . . . . Average Corruption . | . . . . . . . . . Corruption Purged . | . . . . . . . . . Corruption Blocked . | . . . . . . . . . Overload Shots . | . . . . . . . . . Overflow Damage 448 | . . . . . . 213 235 . Projectiles . | . . . . . . . . . Explosions 63 | . . . . . . . 63 . Melee 385 | . . . . . . 213 172 . Knockbacks 8 | . 1 3 3 . . 1 . . Impact . | . . . . . . . . . Kinetic 8 | . 1 3 3 . . 1 . . Secondary . | . . . . . . . . . Self-Inflicted Damage 139 | . . . 93 . . 46 . . Shots 6 | . . . 4 . . 2 . . Rammed 36 | . . 23 5 7 . . 1 . Targets Rammed 39 | . . 24 6 8 . . 1 . Kicked . | . . . . . . . . . Crushed 3 | . . 1 1 1 . . . . Highest Temperature 179 | 15 . 1 24 . . . 179 . Average Temperature 26 | 10 . 1 10 . . . 101 . Received Heat Transfer 453 | . . 39 171 . . 27 72 144 Siege Activations . | . . . . . . . . . Robots Corrupted . | . . . . . . . . . Combat Hostiles . | . . . . . . . . . Parts Fried . | . . . . . . . . . Impact Corruptions . | . . . . . . . . . Robots Melted . | . . . . . . . . . Combat Hostiles . | . . . . . . . . . Parts Melted . | . . . . . . . . . Heat Transferred 499 | 275 . . 74 . . 150 . . Parts Sabotaged . | . . . . . . . . . Parts Stolen . | . . . . . . . . . Parts Stripped . | . . . . . . . . . Power Chain Reactions . | . . . . . . . . . Missiles Intercepted . | . . . . . . . . . Alert | -11 -10 -10 -9 -9 -9 -8 -8 -7 ------- Run | Scr Mat Min Mat Min Exi Min Mat Fac Peak Influence 714 | 35 100 194 714 198 . 489 332 146 Initial 112 | . 22 19 65 103 . . 112 111 Average 79 | 20 8 18 394 157 . 222 136 130 Maximum Alert Level 3 | . . . 3 . . 2 1 . Low Security (%) 84 | 100 100 100 2 100 . 55 63 100 Level 1 10 | . . . 51 . . 33 36 . Level 2 4 | . . . 44 . . 11 . . Level 3 . | . . . 1 . . . . . Level 4 . | . . . . . . . . . Level 5 . | . . . . . . . . . High Security . | . . . . . . . . . Max Security . | . . . . . . . . . Squads Dispatched 7 | . 2 . 3 . . . 1 1 Investigation 5 | . 2 . 1 . . . 1 1 Extermination . | . . . . . . . . . Reinforcement 2 | . . . 2 . . . . . Assault . | . . . . . . . . . Garrison . | . . . . . . . . . Intercept . | . . . . . . . . . Searches Triggered 1 | . . . 1 . . . . . Construction Impeded . | . . . . . . . . . Haulers Reinforced . | . . . . . . . . . Active Scanning Responses . | . . . . . . . . . Cargo Convoy Interrupts . | . . . . . . . . . Stealth | -11 -10 -10 -9 -9 -9 -8 -8 -7 --------- Run | Scr Mat Min Mat Min Exi Min Mat Fac Distress Signals 7 | . . 2 3 . . 1 1 . Communications Jammed . | . . . . . . . . . Distress Signals . | . . . . . . . . . Times Spotted 89 | . 2 12 39 4 . 11 20 1 Peak Tracking Total 8 | . 2 8 8 4 . 7 3 2 Tactical Retreats 11 | . . 1 7 . . 1 2 . Traps | -11 -10 -10 -9 -9 -9 -8 -8 -7 ------- Run | Scr Mat Min Mat Min Exi Min Mat Fac Traps Triggered 4 | . . . . . . . 4 . Indirectly . | . . . . . . . . . Trap Hack Attempts . | . . . . . . . . . Triggered . | . . . . . . . . . Disarmed . | . . . . . . . . . Reprogrammed . | . . . . . . . . . Reused . | . . . . . . . . . Traps Reconfigurated 4 | . . . . . . . 4 . Traps Extracted . | . . . . . . . . . Installed . | . . . . . . . . . Triggered . | . . . . . . . . . Machines | -11 -10 -10 -9 -9 -9 -8 -8 -7 ---------- Run | Scr Mat Min Mat Min Exi Min Mat Fac Machines Disabled 11 | . . 1 4 . . 2 4 . Max in Single Turn 3 | . . 1 3 . . 2 3 . Machines Sabotaged . | . . . . . . . . . Garrisons Compromised . | . . . . . . . . . Overloaded Fab Kills . | . . . . . . . . . Hacking | -11 -10 -10 -9 -9 -9 -8 -8 -7 --------- Run | Scr Mat Min Mat Min Exi Min Mat Fac Machines Accessed 28 | . 7 . 10 . 1 . 9 1 Terminals 18 | . 5 . 7 . . . 6 . Fabricators 1 | . . . . . . . . 1 Repair Stations 3 | . . . 1 . . . 2 . Recycling Units 3 | . 2 . 1 . . . . . Scanalyzers 2 | . . . 1 . . . 1 . Garrison Access . | . . . . . . . . . Total Hacks 85 | . 23 . 34 . 1 . 24 3 Successful 40 | . 11 . 18 . 1 . 9 1 Failed 44 | . 11 . 16 . . . 15 2 Catastrophic 5 | . 2 . 1 . . . 2 . Database Lockouts 1 | . 1 . . . . . . . Manual 46 | . 18 . 15 . 1 . 10 2 Terminals 59 | . 19 . 24 . . . 16 . Fabricators 3 | . . . . . . . . 3 Repair Stations 11 | . . . 5 . . . 6 . Recycling Units 7 | . 4 . 3 . . . . . Scanalyzers 4 | . . . 2 . . . 2 . Garrison Access . | . . . . . . . . . Terminal Hacks 17 | . 6 . 7 . 1 . 3 . Robot Analysis 4 | . 3 . 1 . . . . . Prototype ID Bank 2 | . 1 . 1 . . . . . Terminal Index 2 | . . . 1 . . . 1 . Unreport Threat 4 | . . . 2 . . . 2 . Locate Traps 4 | . 2 . 2 . . . . . EX-Prototype ID Bank 1 | . . . . . 1 . . . Fabricator Hacks 1 | . . . . . . . . 1 Build 1 | . . . . . . . . 1 Repair Station Hacks 10 | . . . 5 . . . 5 . Scan Component 6 | . . . 3 . . . 3 . Repair 4 | . . . 2 . . . 2 . Recycling Unit Hacks . | . . . . . . . . . Scanalyzer 3 | . . . 2 . . . 1 . Insert Component 2 | . . . 1 . . . 1 . Analyze 1 | . . . 1 . . . . . Garrison Access Hacks . | . . . . . . . . . Unauthorized Hacks 9 | . 5 . 4 . . . . . Terminals 5 | . 2 . 3 . . . . . Track 4 | . 2 . 2 . . . . . Operators 1 | . . . 1 . . . . . Fabricators . | . . . . . . . . . Repair Stations . | . . . . . . . . . Recycling Units 4 | . 3 . 1 . . . . . Recyclers 1 | . 1 . . . . . . . Tunnel 3 | . 2 . 1 . . . . . Scanalyzers . | . . . . . . . . . Garrison Access . | . . . . . . . . . Data Cores Recovered . | . . . . . . . . . Used . | . . . . . . . . . Hacking Detections 26 | . 6 . 10 . . . 9 1 Full Trace Events 1 | . . . . . . . . 1 Feedback Events . | . . . . . . . . . Feedback Blocked . | . . . . . . . . . Robot Schematics Acquired . | . . . . . . . . . Robots Built . | . . . . . . . . . Authchips . | . . . . . . . . . Time . | . . . . . . . . . Total Robot Build Rating . | . . . . . . . . . Part Schematics Acquired 1 | . . . 1 . . . . . Parts Built 2 | . . . . . . . . 2 Authchips . | . . . . . . . . . Time 117 | . . . . . . . . 117 Total Part Build Rating 14 | . . . . . . . . 14 Parts Repaired 4 | . . . 2 . . . 2 . Time 122 | . . . 52 . . . 70 . Parts Recycled . | . . . . . . . . . Recycled Matter . | . . . . . . . . . Retrieved Matter . | . . . . . . . . . Retrieved Components . | . . . . . . . . . Parts Scanalyzed 1 | . . . 1 . . . . . Part Schematics Acquired 1 | . . . 1 . . . . . Parts Damaged . | . . . . . . . . . Bothacking | -11 -10 -10 -9 -9 -9 -8 -8 -7 ------------ Run | Scr Mat Min Mat Min Exi Min Mat Fac Used RIF Installer . | . . . . . . . . . Robots Hacked . | . . . . . . . . . Non-combat . | . . . . . . . . . Combat . | . . . . . . . . . Robot Hacks Applied . | . . . . . . . . . Relay Couplers Released . | . . . . . . . . . Fabnet Peak Effective % . | . . . . . . . . . Robots Rewired . | . . . . . . . . . Allies Hacked . | . . . . . . . . . Hacks Repelled . | . . . . . . . . . Allies | -11 -10 -10 -9 -9 -9 -8 -8 -7 -------- Run | Scr Mat Min Mat Min Exi Min Mat Fac Total Allies . | . . . . . . . . . Largest Group . | . . . . . . . . . Highest-Rated Group . | . . . . . . . . . Highest-Rated Ally . | . . . . . . . . . Total Orders . | . . . . . . . . . Ally Attacks . | . . . . . . . . . Total Damage . | . . . . . . . . . Kills . | . . . . . . . . . Allies Corrupted . | . . . . . . . . . Allies Melted . | . . . . . . . . . Intel | -11 -10 -10 -9 -9 -9 -8 -8 -7 ------- Run | Scr Mat Min Mat Min Exi Min Mat Fac Robot Analysis Total 4 | . 3 . 1 . . . . . Derelict Logs Recovered 2 | . . 1 . 1 . . . . Drone Launches . | . . . . . . . . . Drone Recoveries . | . . . . . . . . . Exploration | -11 -10 -10 -9 -9 -9 -8 -8 -7 ------------- Run | Scr Mat Min Mat Min Exi Min Mat Fac Turns Passed 12753 | 215 5211 3240 1247 328 176 408 1608 320 Spaces Moved 5567 | 58 350 773 1125 545 342 567 1554 253 Core 5503 | 58 350 773 1103 536 342 556 1532 253 Treads 52 | . . . 22 9 . 11 10 . Legs . | . . . . . . . . . Wheels . | . . . . . . . . . Hover . | . . . . . . . . . Flight 12 | . . . . . . . 12 . Fastest Speed 50 | 50 50 50 50 50 50 50 50 50 Average Speed 51 | 50 50 50 52 51 50 52 50 50 Slowest Speed 160 | 50 150 50 160 160 50 160 145 50 Overloaded Moves . | . . . . . . . . . Propulsion Burnouts . | . . . . . . . . . Robots Hopped . | . . . . . . . . . Cave-ins Triggered . | . . . . . . . . . Exploration Rate (%) 62 | 4 50 99 66 99 69 94 72 6 Regions Visited 8 Branch Regions 4 Pre-discovered Areas 4 | . 2 . 1 1 . . . . Known Exits Taken 2 | . . . . . . 1 1 . Unknown Exits Taken 6 | 1 1 1 1 1 1 . . . Scrap Searched 3 | . . 1 . 1 . 1 . . Spaces Dug 104 | . 4 8 11 . . 58 20 3 Terrain Destroyed 322 | . 5 31 80 . . 144 59 3 Melee 24 | . . . . . . 1 20 3 Projectile 11 | . 5 . 4 . . 2 . . AOE 287 | . . 31 76 . . 141 39 . Terrain Rammed . | . . . . . . . . . Walls Destroyed . | . . . . . . . . . Machines Disabled . | . . . . . . . . . Actions | -11 -10 -10 -9 -9 -9 -8 -8 -7 --------- Run | Scr Mat Min Mat Min Exi Min Mat Fac Total 15106 | 219 5362 3587 1700 572 347 633 2259 427 Wait 9061 | 136 4986 2761 437 . . 16 572 153 Move 5559 | 57 349 772 1124 544 341 566 1553 253 Hop . | . . . . . . . . . Pick Up 34 | 2 4 . 9 5 2 1 9 2 Fast Attach 26 | . 3 . 9 . 1 2 9 2 Attach 28 | 2 1 1 14 1 . 5 3 1 Detach 19 | . . 2 12 1 . 4 . . Swap 31 | . 5 5 4 . . 6 11 . Drop 63 | 8 3 . 16 5 3 3 22 3 Fire 141 | 14 11 22 69 8 . 15 2 . Melee 105 | . . . . . . 15 77 13 Ram . | . . . . . . . . . Kick . | . . . . . . . . . Crush 39 | . . 24 6 8 . . 1 . Escape Stasis . | . . . . . . . . . Rewire . | . . . . . . . . . Trap . | . . . . . . . . . Miscellaneous . | . . . . . . . . . Route ------- -11/Scrapyard -10/Materials (discovered 3 exits: *Mat / [*Min x2]) -10/Mines (discovered 2 exits: *Mat x2) -9/Materials (discovered 4 exits: *Mat / [*Min x2] / [*Sto]) -9/Mines (discovered 3 exits: *Mat x2 / *Exi) -9/Exiles -8/Mines (discovered 2 exits: *Mat x2) -8/Materials (discovered 2 exits: *Fac x2) -7/Factory History --------- Turn | Location | Event 11 | -11/Scrapyard | Discovered new exit (range 3) 216 | -11/Scrapyard | Entered Materials 304 | -10/Materials | Build established: Mutant 5296 | -10/Materials | Discovered new exit (range 15) 5321 | -10/Materials | Central database locked down 5340 | -10/Materials | Discovered new exit (range 16) 5361 | -10/Materials | Discovered new exit (range 7) 5427 | -10/Materials | Entered Mines 5522 | -10/Mines | Discovered new exit (range 6) 5539 | -10/Mines | Assembled infested the area 5544 | -10/Mines | Assisted by a Guerilla fighting off Assembled 8532 | -10/Mines | Discovered new exit (range 8) 8539 | -10/Mines | Learned Materials emergency access door positions 8667 | -10/Mines | Entered Materials 8667 | -9/Materials | Evolved 2 slots: Propulsion x1, Utility x1 8898 | -9/Materials | Repaired Lgt. Treads 8925 | -9/Materials | Repaired Lgt. Cannon 9025 | -9/Materials | Discovered new exit (range 15) 9083 | -9/Materials | Discovered new exit (range 17) 9226 | -9/Materials | Discovered new exit (range 5) 9553 | -9/Materials | Discovered new exit (range 15) 9867 | -9/Materials | Search patrols dispatched 9914 | -9/Materials | Entered Mines 9918 | -9/Mines | Deemed a non-threat by the Exiles lab entrance 9918 | -9/Mines | Discovered new exit (range 5) 9932 | -9/Mines | Discovered new exit (range 5) 9941 | -9/Mines | Identified exit to Materials 10100 | -9/Mines | Learned location of Storage (-9) 10193 | -9/Mines | Found a hidden stash of uninstalled traps 10242 | -9/Mines | Entered Exiles 10257 | -9/Exiles | Met 8R-AWN 10264 | -9/Exiles | Met EX-HEX 10278 | -9/Exiles | Met EX-BIN 10305 | -9/Exiles | Aligned with FarCom system 10305 | -9/Exiles | Given EX-Vault access code 10318 | -9/Exiles | Opened EX-Vault 10321 | -9/Exiles | Found 0b10 Alert Chip 10341 | -9/Exiles | Found Trap Reconfigurator 10353 | -9/Exiles | Warned to stay clear of 0b10 Research branches 10367 | -9/Exiles | Met EX-DEC 10414 | -9/Exiles | Discovered new exit (range 10) 10418 | -9/Exiles | Stole two prototypes: 0b10 Alert Chip, Trap Reconfigurator 10418 | -9/Exiles | Entered Mines 10433 | -8/Mines | Discovered exit to Materials (range 11) 10496 | -8/Mines | Discovered exit to Materials (range 15) 10691 | -8/Mines | Destroyed 7 combat bots 10826 | -8/Mines | Entered Materials 10826 | -8/Materials | Evolved 2 slots: Propulsion x1, Utility x1 10960 | -8/Materials | Build established: Scout 11067 | -8/Materials | Repaired Imp. Treads 11108 | -8/Materials | Discovered new exit (range 8) 11812 | -8/Materials | Discovered new exit (range 11) 11817 | -8/Materials | Identified exit to Factory 12257 | -8/Materials | Repaired Katana 12434 | -8/Materials | Entered Factory 12434 | -7/Factory | Evolved 2 slots: Propulsion x1, Utility x1 12436 | -7/Factory | FarCom data flow suspended 12577 | -7/Factory | Fabricated Hyb. Antimatter Reactor? 12754 | -7/Factory | Self-destructed Last Messages --------------- 12459_ >> Machine Analyzer network decryption results: 12459_ Fabricator x1 12460_ Connecting with Fabricator... >>Build Building Hyb. Antimatter Reactor... ETC: 117 12460_ ALERT: Suspicious activity at Fabricator F005. Dispatching Investigation squad. 12468_ K-01 Serf collects debris. 12491_ >> Machine Analyzer network decryption results: 12491_ Garrison Access x2 12495_ Acquired Core Analyzer. 12577_ >> FABRICATOR: Completed Hyb. Antimatter Reactor? 12700_ Discarded Core Analyzer. 12702_ Dropped Imp. Propulsion Shielding. 12703_ Acquired Hyb. Antimatter Reactor. 12729_ ALERT: All DSF locations entering lockdown mode. 12736_ Y-54 Guardian Flak Gun severed. 12742_ Imp. Sensor Array destroyed. 12746_ Y-54 Guardian Imp. Light Armor Plating severed. Map ----- +----------------------------------------------------+ | " # ####### ## #????? | | " [# # # ## #????? | | " #####+#### # ## ##???? | | ## #""" # ##+##+##"#???? | | ##### #""" + #???? | | ????# #""" # ##### ##+####? | | ????# # = # #???# # ! #? | | ????# # # #???# #"" #? | | ????# #########+##### #"F #? | | ##### # ## #"" #? | | # ## #"" #? | | + ## # [#? | | # ## # #? | | # ## # """ #? | | # ## # """ #? | | ######## ## # """ #? | | #??????# ## # #? | | #??????# ## # #? | | #??????# ## ;######? | | #??????# ## ##?????? | | #??????# ## #??????? | | #??????####+########## ###????? | | #?????????# #??????# #????? | | ########### ######## #????? | | #????? | | ###### !@ #????? | | #????# Y #????? | | #????#######????? | | #???????????????? | | ############ #???????????????? | | ???????????# #???????????????? | | ???????????# #???????????????? | | ???????????# #???????????????? | | ???????????# #???????????????? | | ???????????# #???????????????? | | ???????????# #???????????????? | | ???????????# #???????????????? | | ???????????# #???????????????? | | ??????????? #???????????????? | | ??????????? #???????????????? | | ?????????? +???????????????? | | ?????????? #???????????????? | | ????????? #???????????????? | | ?????????### #???????????????? | | ???????????# #???????????????? | | ???????????# #???????????????? | | ???????????# #???????????????? | | ???????????# ????????????????? | | ???????????# ????????????????? | | ????????????? ????????????????? | +----------------------------------------------------+ Best States ------------- Heat Dissipation 34 Energy Generation 5 Energy Capacity 100 Matter Stores 300 Matter Capacity 300 Sight Range 20 Robot Scan Range 15 Terrain Scan Density 10 Evasion (%) 50 Targeting Accuracy 6 Core Analysis 6 Recoil Reduction 4 Item Schematics ----------------- Lrg. Storage Unit | -9/Materials | Scanalyzed Robot Schematics ------------------ None Fabricated ------------ Hyb. Antimatter Reactor | x2 | -7/Factory | Preloaded Alien Tech Used ----------------- None Achievements -------------- None Challenges ------------ None Game ------ Seed BombardmentHackingBoomstick Manual? 0 Play Time 01:07:44 Cumulative 394.1 hours Start 2022.08.25 @ 14:43:10 End 2022.08.25 @ 15:52:15 Sessions 1 Manual Loads 0 Difficulty Rogue Special Mode None Game No. 386 Rogue 386 Adventurer 0 Explorer 0 Win Type - Total 8 Types 5/1/2/0/0/0/0/0/0 Lore% 57 Gallery% 78 Achievement% 65 Wizard Run 0 Options --------- ASCII 0 Keyboard 0 Movement Numpad Keybinds 0 Fullscreen 2 Font 18/TerminusBold Map View 76x50 Tactical HUD 1 Map Filters NONE Filters NONE Steam 1 RUN: cb003af3-9f10-491e-b861-8a009fc2bc97